fUST/lending_fUST_20240721
["ID","MTS","AMOUNT","RATE_DAILY","PERIOD"]
[332745670,1721500256351,-500.0,0.00014246,2]
[332745671,1721500256362,-1282.95,0.00014246,2]
[332745672,1721500256371,-500.0,0.00014246,2]
[332745673,1721500256381,-500.0,0.00014246,2]
[332745674,1721500256390,-626.5,0.00014246,2]
[332745675,1721500256400,-2781.42,0.00014246,2]
[332745676,1721500256410,-500.0,0.00014246,2]
[332745677,1721500256420,-500.0,0.00014246,2]
[332745678,1721500256429,-500.0,0.00014246,2]
[332745679,1721500256438,-421.88467126,0.00014246,2]
[332745680,1721500256449,-500.0,0.00014246,2]
[332745681,1721500256458,-500.0,0.00014246,2]
[332745682,1721500256468,-2168.23,0.00014246,2]
[332745683,1721500256478,-500.0,0.00014246,2]
[332745684,1721500256487,-500.0,0.00014246,2]
[332745685,1721500256497,-500.0,0.00014246,2]
[332745686,1721500256507,-500.0,0.00014246,2]
[332745687,1721500256516,-861.65,0.00014246,2]
[332745688,1721500256526,-921.43,0.00014246,2]
[332745689,1721500256536,-560.73301691,0.00014246,2]
[332745690,1721500256545,-2063.58,0.00014246,2]
[332745691,1721500256555,-500.0,0.00014246,2]
[332745692,1721500256565,-500.0,0.00014246,2]
[332745693,1721500256576,-500.0,0.00014246,2]
[332745694,1721500256586,-500.0,0.00014246,2]
[332745695,1721500256597,-1535.4,0.00014246,2]
[332745696,1721500256608,-1367.5,0.00014246,2]
[332745697,1721500256619,-500.0,0.00014246,2]
[332745698,1721500256632,-1766.9,0.00014246,2]
[332745699,1721500256642,-500.0,0.00014246,2]
[332745700,1721500256652,-500.0,0.00014246,2]
[332745701,1721500256661,-500.0,0.00014246,2]
[332745702,1721500256673,-678.49,0.00014246,2]
[332745703,1721500256683,-1791.92,0.00014246,2]
[332745704,1721500256694,-539.8,0.00014246,2]
[332745705,1721500256704,-500.0,0.00014246,2]
[332745706,1721500256715,-500.0,0.00014246,2]
[332745707,1721500256725,-500.0,0.00014246,2]
[332745708,1721500256735,-500.0,0.00014246,2]
[332745709,1721500256746,-500.0,0.00014246,2]
[332745710,1721500256757,-500.0,0.00014246,2]
[332745711,1721500256767,-2578.48,0.00014246,2]
[332745712,1721500256777,-500.0,0.00014246,2]
[332745713,1721500256786,-500.0,0.00014246,2]
[332745714,1721500256797,-500.0,0.00014246,2]
[332745715,1721500256807,-897.56,0.00014246,2]
[332745716,1721500256817,-769.49,0.00014246,2]
[332745717,1721500256826,-724.24,0.00014246,2]
[332745718,1721500256878,-500.0,0.00014246,2]
[332745719,1721500256890,-1393.65,0.00014246,2]
[332745720,1721500256900,-500.0,0.00014246,2]
[332745721,1721500256913,-520.63,0.00014246,2]
[332745722,1721500256923,-513.01,0.00014246,2]
[332745723,1721500256934,-500.0,0.00014246,2]
[332745724,1721500256946,-721.38,0.00014246,2]
[332745725,1721500256956,-1545.17,0.00014246,2]
[332745726,1721500256967,-3002.39,0.00014246,2]
[332745727,1721500256977,-682.11,0.00014246,2]
[332745728,1721500256991,-500.0,0.00014246,2]
[332745729,1721500257002,-1804.4,0.00014246,2]
[332745730,1721500257012,-921.09,0.00014246,2]
[332745731,1721500257024,-2054.12,0.00014246,2]
[332745732,1721500257033,-3848.9,0.00014246,2]
[332745733,1721500257042,-2125.36,0.00014246,2]
[332745734,1721500257053,-1172.73,0.00014246,2]
[332745735,1721500257063,-1378.3,0.00014246,2]
[332745736,1721500257072,-500.0,0.00014246,2]
[332745737,1721500257081,-10858.16,0.00014246,2]
[332745738,1721500257090,-500.0,0.00014246,2]
[332745739,1721500257099,-500.0,0.00014246,2]
[332745740,1721500257108,-500.0,0.00014246,2]
[332745741,1721500257118,-500.0,0.00014246,2]
[332745742,1721500257128,-763.32,0.00014246,2]
[332745743,1721500257137,-741.17,0.00014246,2]
[332745744,1721500257147,-500.0,0.00014246,2]
[332745745,1721500257157,-500.0,0.00014246,2]
[332745746,1721500257167,-6337.81,0.00014246,2]
[332745747,1721500257176,-9974.88,0.00014246,2]
[332745748,1721500257186,-599.45,0.00014246,2]
[332745749,1721500257195,-1048.68,0.00014246,2]
[332745750,1721500257205,-816.21,0.00014246,2]
[332745751,1721500257216,-161.72252877,0.00014246,2]
[332745752,1721500257225,-596.66,0.00014246,2]
[332745753,1721500257235,-1003.63,0.00014246,2]
[332745754,1721500257244,-653.11,0.00014246,2]
[332745755,1721500257253,-922.66,0.00014246,2]
[332745756,1721500257263,-504.01346212,0.00014246,2]
[332745757,1721500257272,-500.0,0.00014246,2]
[332745758,1721500257282,-500.0,0.00014246,2]
[332745759,1721500257291,-500.0,0.00014246,2]
[332745760,1721500257299,-3024.55,0.00014246,2]
[332745761,1721500257309,-500.0,0.00014246,2]
[332745762,1721500257318,-9525.09,0.00014246,2]
[332745763,1721500257328,-4801.01,0.00014246,2]
[332745764,1721500257339,-601.56,0.00014246,2]
[332745765,1721500257348,-500.0,0.00014246,2]
[332745766,1721500257361,-1226.56,0.00014246,2]
[332745767,1721500257371,-353.74643827,0.00014246,2]
[332745768,1721500257380,-521.4783236,0.00014246,2]
[332745769,1721500257390,-714.05,0.00014246,2]
[332745770,1721500257399,-2915.71,0.00014246,2]
[332745771,1721500257408,-626.75,0.00014246,2]
[332745772,1721500257418,-595.19,0.00014246,2]
[332745773,1721500257427,-5451.22,0.00014246,2]
[332745774,1721500257436,-559.3,0.00014246,2]
[332745775,1721500257446,-2356.17,0.00014246,2]
[332745776,1721500257456,-2974.58,0.00014246,2]
[332745777,1721500257468,-500.0,0.00014246,2]
[332745778,1721500257480,-500.0,0.00014246,2]
[332745779,1721500257491,-500.0,0.00014246,2]
[332745780,1721500257501,-5614.66,0.00014246,2]
[332745781,1721500257512,-500.0,0.00014246,2]
[332745782,1721500257522,-500.0,0.00014246,2]
[332745783,1721500257532,-1042.91,0.00014246,2]
[332745784,1721500257543,-7673.42,0.00014246,2]
[332745785,1721500257552,-1876.24,0.00014246,2]
[332745786,1721500257562,-2182.76,0.00014246,2]
[332745787,1721500257571,-19190.55,0.00014246,2]
[332745788,1721500257581,-500.0,0.00014246,2]
[332745789,1721500257592,-3547.7,0.00014246,2]
[332745790,1721500257601,-500.0,0.00014246,2]
[332745791,1721500257610,-526.21688811,0.00014246,2]
[332745792,1721500257619,-500.0,0.00014246,2]
[332745793,1721500257629,-500.0,0.00014246,2]
[332745794,1721500257639,-1594.52,0.00014246,2]
[332745795,1721500257649,-500.0,0.00014246,2]
[332745796,1721500257658,-3139.22,0.00014246,2]
[332745797,1721500257667,-500.0,0.00014246,2]
[332745798,1721500257676,-500.0,0.00014246,2]
[332745799,1721500257686,-1164.01,0.00014246,2]
[332745800,1721500257696,-2479.41,0.00014246,2]
[332745801,1721500257705,-650.96,0.00014246,2]
[332745802,1721500257715,-3387.15,0.00014246,2]
[332745803,1721500257725,-789.3,0.00014246,2]
[332745804,1721500257735,-500.0,0.00014246,2]
[332745805,1721500257745,-1529.29,0.00014246,2]
[332745806,1721500257755,-505.99,0.00014246,2]
[332745807,1721500257764,-930.37,0.00014246,2]
[332745808,1721500257774,-1165.16,0.00014246,2]
[332745809,1721500257784,-8367.45,0.00014246,2]
[332745810,1721500257793,-718.79,0.00014246,2]
[332745811,1721500257803,-251.91577685,0.00014246,2]
[332745812,1721500257812,-2305.92,0.00014246,2]
[332745813,1721500257821,-2969.09,0.00014246,2]
[332745814,1721500257831,-791.71,0.00014246,2]
[332745815,1721500257841,-500.0,0.00014246,2]
[332745816,1721500257850,-500.0,0.00014246,2]
[332745817,1721500257860,-1463.89,0.00014246,2]
[332745818,1721500257871,-4166.01,0.00014246,2]
[332745819,1721500257881,-643.3,0.00014246,2]
[332745820,1721500257891,-500.0,0.00014246,2]
[332745821,1721500257902,-500.0,0.00014246,2]
[332745822,1721500257912,-2190.32,0.00014246,2]
[332745823,1721500257922,-500.0,0.00014246,2]
[332745824,1721500257933,-500.0,0.00014246,2]
[332745825,1721500257943,-624.9,0.00014246,2]
[332745826,1721500257955,-546.53,0.00014246,2]
[332745827,1721500257966,-594.15,0.00014246,2]
[332745828,1721500257979,-1267.92,0.00014246,2]
[332745829,1721500257990,-475.884335,0.00014246,2]
[332745830,1721500258000,-475.884335,0.00014246,2]
[332745831,1721500258015,-475.884335,0.00014246,2]
[332745832,1721500258024,-5219.53,0.00014246,2]
[332745833,1721500258033,-877.92,0.00014246,2]
[332745834,1721500258043,-475.884335,0.00014246,2]
[332745835,1721500258054,-475.884335,0.00014246,2]
[332745836,1721500258068,-656.43,0.00014246,2]
[332745837,1721500258079,-475.884335,0.00014246,2]
[332745838,1721500258091,-500.0,0.00014246,2]
[332745839,1721500258102,-453.62559309,0.00014246,2]
[332745840,1721500258112,-500.0,0.00014246,2]
[332745841,1721500258122,-500.0,0.00014246,2]
[332745842,1721500258131,-1839.8,0.00014246,2]
[332745843,1721500258141,-500.0,0.00014246,2]
[332745844,1721500258152,-800.39,0.00014246,2]
[332745845,1721500258162,-1627.8,0.00014246,2]
[332745846,1721500258173,-500.0,0.00014246,2]
[332745847,1721500258183,-3266.7,0.00014246,2]
[332745848,1721500258193,-500.0,0.00014246,2]
[332745849,1721500258202,-500.0,0.00014246,2]
[332745850,1721500258211,-2178.19,0.00014246,2]
[332745851,1721500258222,-1202.04,0.00014246,2]
[332745852,1721500258231,-1240.33,0.00014246,2]
[332745853,1721500258242,-500.0,0.00014246,2]
[332745854,1721500258252,-500.0,0.00014246,2]
[332745855,1721500258263,-500.0,0.00014246,2]
[332745856,1721500258272,-983.82,0.00014246,2]
[332745857,1721500258282,-3487.3,0.00014246,2]
[332745858,1721500258292,-500.0,0.00014246,2]
[332745859,1721500258301,-15542.84,0.00014246,2]
[332745860,1721500258311,-500.0,0.00014246,2]
[332745861,1721500258320,-580.38,0.00014246,2]
[332745862,1721500258331,-549.5,0.00014246,2]
[332745863,1721500258341,-524.66,0.00014246,2]
[332745864,1721500258352,-1491.24,0.00014246,2]
[332745865,1721500258362,-955.87,0.00014246,2]
[332745866,1721500258372,-2831.62,0.00014246,2]
[332745867,1721500258381,-500.0,0.00014246,2]
[332745868,1721500258390,-1594.87,0.00014246,2]
[332745869,1721500258399,-500.0,0.00014246,2]
[332745870,1721500258409,-2697.92,0.00014246,2]
[332745871,1721500258419,-2917.77,0.00014246,2]
[332745872,1721500258428,-500.0,0.00014246,2]
[332745873,1721500258438,-500.0,0.00014246,2]
[332745874,1721500258447,-1810.39,0.00014246,2]
[332745875,1721500258457,-500.0,0.00014246,2]
[332745876,1721500258466,-41638.29,0.00014246,2]
[332745877,1721500258475,-500.0,0.00014246,2]
[332745878,1721500258485,-500.0,0.00014246,2]
[332745879,1721500258494,-500.0,0.00014246,2]
[332745880,1721500258503,-1267.33,0.00014246,2]
[332745881,1721500258512,-946.79,0.00014246,2]
[332745882,1721500258522,-500.0,0.00014246,2]
[332745883,1721500258531,-500.0,0.00014246,2]
[332745884,1721500258540,-1311.4,0.00014246,2]
[332745885,1721500258550,-307.19556289,0.00014246,2]
[332745886,1721500258559,-2158.72,0.00014246,2]
[332745887,1721500258568,-1593.24,0.00014246,2]
[332745888,1721500258577,-415.26668233,0.00014246,2]
[332745889,1721500258587,-1334.16,0.00014246,2]
[332745890,1721500258596,-820.06,0.00014246,2]
[332745891,1721500258605,-518.32,0.00014246,2]
[332745892,1721500258614,-500.0,0.00014246,2]
[332745893,1721500258624,-55500.97,0.00014246,2]
[332745894,1721500258634,-750.0,0.00014247,2]
[332745895,1721500258643,-587.0,0.00014277,2]
[332745896,1721500258654,-9801.80679585,0.00014314,2]
[332745897,1721500258664,-806.5931156,0.00014374,2]
[332745898,1721500258674,-833.63,0.0001452,2]
[332745899,1721500258684,-500.0,0.0001452,2]
[332745900,1721500258694,-500.0,0.0001452,2]
[332745901,1721500258705,-500.0,0.0001452,2]
[332745902,1721500258715,-579.83,0.0001452,2]
[332745903,1721500258728,-790.83,0.0001452,2]
[332745904,1721500258738,-500.0,0.0001452,2]
[332745905,1721500258747,-500.0,0.0001452,2]
[332745906,1721500258759,-500.0,0.0001452,2]
[332745907,1721500258770,-500.0,0.0001452,2]
[332745908,1721500258782,-500.0,0.0001452,2]
[332745909,1721500258793,-910.78,0.0001452,2]
[332745910,1721500258805,-796.91,0.0001452,2]
[332745911,1721500258814,-500.0,0.0001452,2]
[332745912,1721500258825,-878.74,0.0001452,2]
[332745913,1721500258836,-1045.53,0.0001452,2]
[332745914,1721500258848,-500.0,0.0001452,2]
[332745915,1721500258859,-500.0,0.0001452,2]
[332745916,1721500258869,-571.33,0.0001452,2]
[332745917,1721500258882,-500.0,0.0001452,2]
[332745918,1721500258893,-500.0,0.0001452,2]
[332745919,1721500258904,-622.68,0.0001452,2]
[332745920,1721500258916,-554.63644339,0.0001452,2]
[332745921,1721500258928,-500.0,0.0001452,2]
[332745922,1721500258938,-500.0,0.0001452,2]
[332745923,1721500258948,-500.0,0.0001452,2]
[332745924,1721500258957,-500.0,0.0001452,2]
[332745925,1721500258967,-500.0,0.0001452,2]
[332745926,1721500258978,-500.0,0.0001452,2]
[332745927,1721500258992,-1118.5,0.0001452,2]
[332745928,1721500259002,-500.0,0.0001452,2]
[332745929,1721500259013,-500.0,0.0001452,2]
[332745930,1721500259026,-500.0,0.0001452,2]
[332745931,1721500259035,-594.43,0.0001452,2]
[332745932,1721500259045,-540.15,0.0001452,2]
[332745933,1721500259055,-500.0,0.0001452,2]
[332745934,1721500259066,-500.0,0.0001452,2]
[332745935,1721500259075,-679.33,0.0001452,2]
[332745936,1721500259085,-500.0,0.0001452,2]
[332745937,1721500259095,-500.0,0.0001452,2]
[332745938,1721500259104,-500.0,0.0001452,2]
[332745939,1721500259114,-500.0,0.0001452,2]
[332745940,1721500259124,-182.99629275,0.0001452,2]
[332745941,1721500259135,-883.27,0.0001452,2]
[332745942,1721500259146,-500.0,0.0001452,2]
[332745943,1721500259157,-1066.04,0.0001452,2]
[332745944,1721500259168,-651.66,0.0001452,2]
[332745945,1721500259179,-503.49,0.0001452,2]
[332745946,1721500259189,-500.0,0.0001452,2]
[332745947,1721500259199,-2266.53,0.0001452,2]
[332745948,1721500259208,-500.0,0.0001452,2]
[332745949,1721500259218,-500.0,0.0001452,2]
[332745950,1721500259230,-500.0,0.0001452,2]
[332745951,1721500259242,-500.0,0.0001452,2]
[332745952,1721500259251,-500.0,0.0001452,2]
[332745953,1721500259263,-500.0,0.0001452,2]
[332745954,1721500259274,-500.0,0.0001452,2]
[332745955,1721500259283,-529.69,0.0001452,2]
[332745956,1721500259293,-637.53893582,0.0001452,2]
[332745957,1721500259302,-351.71501332,0.0001452,2]
[332745958,1721500259311,-503.98,0.0001452,2]
[332745959,1721500259321,-2399.27,0.0001452,2]
[332745960,1721500259331,-500.0,0.0001452,2]
[332745961,1721500259344,-642.9,0.0001452,2]
[332745962,1721500259353,-500.0,0.0001452,2]
[332745963,1721500259363,-500.0,0.0001452,2]
[332745964,1721500259372,-538.03,0.0001452,2]
[332745965,1721500259383,-500.0,0.0001452,2]
[332745966,1721500259393,-500.0,0.0001452,2]
[332745967,1721500259404,-500.0,0.0001452,2]
[332745968,1721500259413,-690.28,0.0001452,2]
[332745969,1721500259422,-500.0,0.0001452,2]
[332745970,1721500259432,-1386.39,0.0001452,2]
[332745971,1721500259441,-500.0,0.0001452,2]
[332745972,1721500259451,-1782.45,0.0001452,2]
[332745973,1721500259460,-819.96,0.0001452,2]
[332745974,1721500259470,-521.24,0.0001452,2]
[332745975,1721500259480,-850.61,0.0001452,2]
[332745976,1721500259491,-621.70287847,0.0001452,2]
[332745977,1721500259502,-500.0,0.0001452,2]
[332745978,1721500259512,-644.82,0.0001452,2]
[332745979,1721500259523,-563.29,0.0001452,2]
[332745980,1721500259532,-723.75,0.0001452,2]
[332745981,1721500259541,-3096.21,0.0001452,2]
[332745982,1721500259551,-500.0,0.0001452,2]
[332745983,1721500259562,-500.0,0.0001452,2]
[332745984,1721500259574,-500.0,0.0001452,2]
[332745985,1721500259586,-633.4,0.0001452,2]
[332745986,1721500259596,-595.13,0.0001452,2]
[332745987,1721500259607,-539.6,0.0001452,2]
[332745988,1721500259619,-500.0,0.0001452,2]
[332745989,1721500259628,-621.08,0.0001452,2]
[332745990,1721500259638,-500.0,0.0001452,2]
[332745991,1721500259648,-500.0,0.0001452,2]
[332745992,1721500259657,-500.0,0.0001452,2]
[332745993,1721500259666,-1171.4,0.0001452,2]
[332745994,1721500259675,-2392.2,0.0001452,2]
[332745995,1721500259685,-2257.63,0.0001452,2]
[332745996,1721500259694,-575.81,0.0001452,2]
[332745997,1721500259703,-500.0,0.0001452,2]
[332745998,1721500259713,-500.0,0.0001452,2]
[332745999,1721500259722,-3478.77,0.0001452,2]
[332746000,1721500259731,-500.0,0.0001452,2]
[332746001,1721500259740,-500.0,0.0001452,2]
[332746002,1721500259749,-2385.11,0.0001452,2]
[332746003,1721500259758,-500.0,0.0001452,2]
[332746004,1721500259768,-929.7,0.0001452,2]
[332746005,1721500259777,-500.0,0.0001452,2]
[332746006,1721500259786,-500.0,0.0001452,2]
[332746007,1721500259795,-1909.86,0.0001452,2]
[332746008,1721500259804,-1051.01,0.0001452,2]
[332746009,1721500259813,-423.73046473,0.0001452,2]
[332746010,1721500259823,-1075.39,0.0001452,2]
[332746011,1721500259832,-500.0,0.0001452,2]
[332746012,1721500259843,-500.0,0.0001452,2]
[332746013,1721500259853,-1189.46,0.0001452,2]
[332746014,1721500259862,-500.0,0.0001452,2]
[332746015,1721500259871,-500.0,0.0001452,2]
[332746016,1721500259881,-688.18,0.0001452,2]
[332746017,1721500259890,-500.0,0.0001452,2]
[332746018,1721500259900,-500.0,0.0001452,2]
[332746019,1721500259910,-796.37,0.0001452,2]
[332746020,1721500259920,-1176.28,0.0001452,2]
[332746021,1721500259930,-693.44,0.0001452,2]
[332746022,1721500259939,-500.0,0.0001452,2]
[332746023,1721500259949,-518.45285291,0.0001452,2]
[332746024,1721500259958,-500.0,0.0001452,2]
[332746025,1721500259967,-500.0,0.0001452,2]
[332746026,1721500259981,-571.92256385,0.0001452,2]
[332746027,1721500259990,-617.69,0.0001452,2]
[332746028,1721500260000,-620.43,0.0001452,2]
[332746029,1721500260009,-912.35,0.0001452,2]
[332746030,1721500260020,-1890.28,0.0001452,2]
[332746031,1721500260029,-500.0,0.0001452,2]
[332746032,1721500260039,-521.161017,0.0001452,2]
[332746033,1721500260050,-521.161017,0.0001452,2]
[332746034,1721500260061,-500.0,0.0001452,2]
[332746035,1721500260071,-558.31,0.0001452,2]
[332746036,1721500260081,-4286.48,0.0001452,2]
[332746037,1721500260092,-521.161017,0.0001452,2]
[332746038,1721500260102,-612.0,0.0001452,2]
[332746039,1721500260111,-521.161017,0.0001452,2]
[332746040,1721500260121,-500.0,0.0001452,2]
[332746041,1721500260132,-500.0,0.0001452,2]
[332746042,1721500260141,-813.45,0.0001452,2]
[332746043,1721500260151,-1468.94,0.0001452,2]
[332746044,1721500260161,-500.0,0.0001452,2]
[332746045,1721500260171,-208.87,0.0001452,2]
[332746046,1721500260180,-500.0,0.0001452,2]
[332746047,1721500260190,-609.35,0.0001452,2]
[332746048,1721500260199,-500.0,0.0001452,2]
[332746049,1721500260209,-500.0,0.0001452,2]
[332746050,1721500260219,-500.0,0.0001452,2]
[332746051,1721500260228,-500.0,0.0001452,2]
[332746052,1721500260238,-821.95,0.0001452,2]
[332746053,1721500260247,-582.80298837,0.0001452,2]
[332746054,1721500260257,-500.0,0.0001452,2]
[332746055,1721500260266,-500.0,0.0001452,2]
[332746056,1721500260275,-500.0,0.0001452,2]
[332746057,1721500260285,-315.09393361,0.0001452,2]
[332746058,1721500260295,-500.0,0.0001452,2]
[332746059,1721500260306,-1025.73,0.0001452,2]
[332746060,1721500260316,-500.0,0.0001452,2]
[332746061,1721500260326,-157.78037707,0.0001452,2]
[332746062,1721500260337,-500.0,0.0001452,2]
[332746063,1721500260347,-558.13,0.0001452,2]
[332746064,1721500260357,-1085.97,0.0001452,2]
[332746065,1721500260370,-371.21872969,0.0001452,2]
[332746066,1721500260381,-500.0,0.0001452,2]
[332746067,1721500260391,-516.51303496,0.0001452,2]
[332746068,1721500260401,-1282.95,0.0001452,2]
[332746069,1721500260411,-500.0,0.0001452,2]
[332746070,1721500260422,-500.0,0.0001452,2]
[332746071,1721500260433,-626.5,0.0001452,2]
[332746072,1721500260444,-2781.42,0.0001452,2]
[332746073,1721500260456,-500.0,0.0001452,2]
[332746074,1721500260467,-500.0,0.0001452,2]
[332746075,1721500260478,-500.0,0.0001452,2]
[332746076,1721500260488,-500.0,0.0001452,2]
[332746077,1721500260499,-500.0,0.0001452,2]
[332746078,1721500260510,-2168.23,0.0001452,2]
[332746079,1721500260521,-500.0,0.0001452,2]
[332746080,1721500260532,-500.0,0.0001452,2]
[332746081,1721500260542,-500.0,0.0001452,2]
[332746082,1721500260552,-861.65,0.0001452,2]
[332746083,1721500260562,-921.43,0.0001452,2]
[332746084,1721500260572,-2063.58,0.0001452,2]
[332746085,1721500260586,-500.0,0.0001452,2]
[332746086,1721500260598,-500.0,0.0001452,2]
[332746087,1721500260608,-500.0,0.0001452,2]
[332746088,1721500260619,-1535.4,0.0001452,2]
[332746089,1721500260632,-538.74851506,0.0001452,2]
[332746090,1721500260642,-1367.5,0.0001452,2]
[332746091,1721500260652,-500.0,0.0001452,2]
[332746092,1721500260662,-1766.9,0.0001452,2]
[332746093,1721500260671,-500.0,0.0001452,2]
[332746094,1721500260681,-500.0,0.0001452,2]
[332746095,1721500260691,-500.0,0.0001452,2]
[332746096,1721500260701,-678.49,0.0001452,2]
[332746097,1721500260712,-1791.92,0.0001452,2]
[332746098,1721500260721,-539.8,0.0001452,2]
[332746099,1721500260731,-500.0,0.0001452,2]
[332746100,1721500260740,-500.0,0.0001452,2]
[332746101,1721500260750,-500.0,0.0001452,2]
[332746102,1721500260759,-2578.48,0.0001452,2]
[332746103,1721500260769,-500.0,0.0001452,2]
[332746104,1721500260779,-499.99859316,0.0001452,2]
[332746105,1721500260789,-897.56,0.0001452,2]
[332746106,1721500260798,-769.49,0.0001452,2]
[332746107,1721500260807,-724.24,0.0001452,2]
[332746108,1721500260817,-500.0,0.0001452,2]
[332746109,1721500260827,-1393.65,0.0001452,2]
[332746110,1721500260838,-520.8514786,0.0001452,2]
[332746111,1721500260848,-520.63,0.0001452,2]
[332746112,1721500260859,-513.01,0.0001452,2]
[332746113,1721500260870,-500.0,0.0001452,2]
[332746114,1721500260880,-721.38,0.0001452,2]
[332746115,1721500260890,-1545.17,0.0001452,2]
[332746116,1721500260900,-3002.39,0.0001452,2]
[332746117,1721500260910,-682.11,0.0001452,2]
[332746118,1721500260920,-500.0,0.0001452,2]
[332746119,1721500260931,-1804.4,0.0001452,2]
[332746120,1721500260941,-921.09,0.0001452,2]
[332746121,1721500260951,-2054.12,0.0001452,2]
[332746122,1721500260962,-3848.9,0.0001452,2]
[332746123,1721500260973,-2125.36,0.0001452,2]
[332746124,1721500260988,-1172.73,0.0001452,2]
[332746125,1721500261000,-1378.3,0.0001452,2]
[332746126,1721500261013,-500.0,0.0001452,2]
[332746127,1721500261025,-500.0,0.0001452,2]
[332746128,1721500261035,-10858.16,0.0001452,2]
[332746129,1721500261045,-504.12320318,0.0001452,2]
[332746130,1721500261056,-763.32,0.0001452,2]
[332746131,1721500261068,-741.17,0.0001452,2]
[332746132,1721500261079,-500.0,0.0001452,2]
[332746133,1721500261091,-500.0,0.0001452,2]
[332746134,1721500261102,-6337.81,0.0001452,2]
[332746135,1721500261112,-9974.88,0.0001452,2]
[332746136,1721500261124,-599.45,0.0001452,2]
[332746137,1721500261135,-1048.68,0.0001452,2]
[332746138,1721500261146,-816.21,0.0001452,2]
[332746139,1721500261157,-596.66,0.0001452,2]
[332746140,1721500261169,-1003.63,0.0001452,2]
[332746141,1721500261181,-653.11,0.0001452,2]
[332746142,1721500261191,-922.66,0.0001452,2]
[332746143,1721500261202,-500.0,0.0001452,2]
[332746144,1721500261212,-500.0,0.0001452,2]
[332746145,1721500261223,-500.0,0.0001452,2]
[332746146,1721500261234,-3024.55,0.0001452,2]
[332746147,1721500261245,-9525.09,0.0001452,2]
[332746148,1721500261255,-4801.01,0.0001452,2]
[332746149,1721500261266,-601.56,0.0001452,2]
[332746150,1721500261277,-1226.56,0.0001452,2]
[332746151,1721500261288,-714.05,0.0001452,2]
[332746152,1721500261298,-2915.71,0.0001452,2]
[332746153,1721500261310,-626.75,0.0001452,2]
[332746154,1721500261321,-595.19,0.0001452,2]
[332746155,1721500261332,-5451.22,0.0001452,2]
[332746156,1721500261343,-559.3,0.0001452,2]
[332746157,1721500261355,-2356.17,0.0001452,2]
[332746158,1721500261365,-2974.58,0.0001452,2]
[332746159,1721500261376,-500.0,0.0001452,2]
[332746160,1721500261387,-500.0,0.0001452,2]
[332746161,1721500261396,-500.0,0.0001452,2]
[332746162,1721500261406,-5614.66,0.0001452,2]
[332746163,1721500261415,-500.0,0.0001452,2]
[332746164,1721500261424,-1042.91,0.0001452,2]
[332746165,1721500261434,-7673.42,0.0001452,2]
[332746166,1721500261443,-1876.24,0.0001452,2]
[332746167,1721500261454,-2182.76,0.0001452,2]
[332746168,1721500261464,-19190.55,0.0001452,2]
[332746169,1721500261473,-500.0,0.0001452,2]